[Event "Open international de Salon de Provence"]
[Site "Salon de Provence, France"]
[Date "2024.07.07"]
[Round "2.2"]
[White "Durand-Benmoussa, Roman"]
[Black "Dimitrov, Radoslav"]
[Result "0-1"]
[WhiteElo "2001"]
[BlackElo "2480"]
[PlyCount "120"]
[EventDate "2024.??.??"]
[TimeControl "1"]

1. e4 {[%emt 0:00:00]} c5 {[%emt 0:00:00]} 2. Nf3 {[%emt 0:00:00]} g6 {[%emt 0:
00:00]} 3. Bc4 {[%emt 0:00:00]} Bg7 {[%emt 0:00:00]} 4. O-O {[%emt 0:00:00]}
Nc6 {[%emt 0:00:00]} 5. c3 {[%emt 0:00:00]} e5 {[%emt 0:00:00]} 6. b4 {[%emt 0:
00:00]} cxb4 {[%emt 0:00:00]} 7. cxb4 {[%emt 0:00:00]} Nge7 {[%emt 0:00:00]} 8.
Nc3 {[%emt 0:00:00]} O-O {[%emt 0:00:00]} 9. Qb3 {[%emt 0:00:00]} d6 {[%emt 0:
00:00]} 10. h3 {[%emt 0:00:00]} h6 {[%emt 0:00:00]} 11. d3 {[%emt 0:00:00]} Kh7
{[%emt 0:00:00]} 12. Bd2 {[%emt 0:00:00]} f5 {[%emt 0:00:00]} 13. Nd5 {[%emt 0:
00:00]} g5 {[%emt 0:00:00]} 14. b5 {[%emt 0:00:00]} Nxd5 {[%emt 0:00:00]} 15.
Bxd5 {[%emt 0:00:00]} Ne7 {[%emt 0:00:00]} 16. Rfc1 {[%emt 0:00:00]} g4 {
[%emt 0:00:00]} 17. hxg4 {[%emt 0:00:00]} fxg4 {[%emt 0:00:00]} 18. Nh2 {
[%emt 0:00:00]} Nxd5 {[%emt 0:00:00]} 19. Qxd5 {[%emt 0:00:00]} Qe7 {[%emt 0:
00:00]} 20. Bb4 {[%emt 0:00:00]} Rd8 {[%emt 0:00:00]} 21. Ba5 {[%emt 0:00:00]}
Be6 {[%emt 0:00:00]} 22. Rc7 {[%emt 0:00:00]} Qxc7 {[%emt 0:00:00]} 23. Bxc7 {
[%emt 0:00:00]} Bxd5 {[%emt 0:00:00]} 24. Bxd8 {[%emt 0:00:00]} g3 {[%emt 0:00:
00]} 25. fxg3 {[%emt 0:00:00]} Rxd8 {[%emt 0:00:00]} 26. exd5 {[%emt 0:00:00]}
Rc8 {[%emt 0:00:00]} 27. Rf1 {[%emt 0:00:00]} Rc5 {[%emt 0:00:00]} 28. a4 {
[%emt 0:00:00]} Kg8 {[%emt 0:00:00]} 29. Ng4 {[%emt 0:00:00]} Rxd5 {[%emt 0:00:
00]} 30. Nf6+ {[%emt 0:00:00]} Bxf6 {[%emt 0:00:00]} 31. Rxf6 {[%emt 0:00:00]}
Rxd3 {[%emt 0:00:00]} 32. Rxh6 {[%emt 0:00:00]} Kg7 {[%emt 0:00:00]} 33. Re6 {
[%emt 0:00:00]} Kf7 {[%emt 0:00:00]} 34. Rh6 {[%emt 0:00:00]} a5 {[%emt 0:00:
00]} 35. Rh7+ {[%emt 0:00:00]} Ke6 {[%emt 0:00:00]} 36. Rxb7 {[%emt 0:00:00]}
Rd4 {[%emt 0:00:00]} 37. Ra7 {[%emt 0:00:00]} Rxa4 {[%emt 0:00:00]} 38. b6 {
[%emt 0:00:00]} Rb4 {[%emt 0:00:00]} 39. b7 {[%emt 0:00:00]} a4 {[%emt 0:00:00]
} 40. g4 {[%emt 0:00:00]} a3 {[%emt 0:00:00]} 41. Kh2 {[%emt 0:00:00]} a2 {
[%emt 0:00:00]} 42. Kh3 {[%emt 0:00:00]} Rxb7 {[%emt 0:00:00]} 43. Rxa2 {
[%emt 0:00:00]} e4 {[%emt 0:00:00]} 44. Kh4 {[%emt 0:00:00]} d5 {[%emt 0:00:00]
} 45. g5 {[%emt 0:00:00]} Ke5 {[%emt 0:00:00]} 46. g6 {[%emt 0:00:00]} d4 {
[%emt 0:00:00]} 47. Ra5+ {[%emt 0:00:00]} Kf4 {[%emt 0:00:00]} 48. Rg5 {
[%emt 0:00:00]} Rg7 {[%emt 0:00:00]} 49. Rg4+ {[%emt 0:00:00]} Ke3 {[%emt 0:00:
00]} 50. Kg5 {[%emt 0:00:00]} d3 {[%emt 0:00:00]} 51. Kf5 {[%emt 0:00:00]} d2 {
[%emt 0:00:00]} 52. Rxe4+ {[%emt 0:00:00]} Kd3 {[%emt 0:00:00]} 53. Re8 {
[%emt 0:00:00]} Rd7 {[%emt 0:00:00]} 54. Ke6 {[%emt 0:00:00]} Rd4 {[%emt 0:00:
00]} 55. g7 {[%emt 0:00:00]} d1=Q {[%emt 0:00:00]} 56. g8=Q {[%emt 0:00:00]}
Qe2+ {[%emt 0:00:00]} 57. Kf5 {[%emt 0:00:00]} Qf2+ {[%emt 0:00:00]} 58. Ke6 {
[%emt 0:00:00]} Qe3+ {[%emt 0:00:00]} 59. Kf5 {[%emt 0:00:00]} Rf4+ {[%emt 0:
00:00]} 60. Kg5 {[%emt 0:00:00]} Qg3+ {[%emt 0:00:00]} 0-1

[Event "Open international de Salon de Provence"]
[Site "Salon de Provence, France"]
[Date "2024.07.07"]
[Round "2.3"]
[White "Nikolov, Momchil"]
[Black "Kolb, Sebastien"]
[Result "1-0"]
[WhiteElo "2460"]
[BlackElo "1923"]
[PlyCount "35"]
[EventDate "2024.??.??"]
[TimeControl "1"]

1. e4 {[%emt 0:00:00]} c5 {[%emt 0:00:00]} 2. Nf3 {[%emt 0:00:00]} Nc6 {
[%emt 0:00:00]} 3. Bb5 {[%emt 0:00:00]} Nf6 {[%emt 0:00:00]} 4. Nc3 {[%emt 0:
00:00]} Qc7 {[%emt 0:00:00]} 5. O-O {[%emt 0:00:00]} e5 {[%emt 0:00:00]} 6. Re1
{[%emt 0:00:00]} Nd4 {[%emt 0:00:00]} 7. Bc4 {[%emt 0:00:00]} d6 {[%emt 0:00:
00]} 8. Nb5 {[%emt 0:00:00]} Nxf3+ {[%emt 0:00:00]} 9. Qxf3 {[%emt 0:00:00]}
Qd8 {[%emt 0:00:00]} 10. Qb3 {[%emt 0:00:00]} Qe7 {[%emt 0:00:00]} 11. d4 {
[%emt 0:00:00]} cxd4 {[%emt 0:00:00]} 12. c3 {[%emt 0:00:00]} a6 {[%emt 0:00:
00]} 13. Qa4 {[%emt 0:00:00]} axb5 {[%emt 0:00:00]} 14. Bxb5+ {[%emt 0:00:00]}
Kd8 {[%emt 0:00:00]} 15. Qxa8 {[%emt 0:00:00]} Qc7 {[%emt 0:00:00]} 16. cxd4 {
[%emt 0:00:00]} Qb6 {[%emt 0:00:00]} 17. a4 {[%emt 0:00:00]} exd4 {[%emt 0:00:
00]} 18. Bd2 {[%emt 0:00:00]} 1-0

[Event "Open international de Salon de Provence"]
[Site "Salon de Provence, France"]
[Date "2024.07.07"]
[Round "2.4"]
[White "Roganova, Maxime"]
[Black "Enchev, Ivajlo"]
[Result "0-1"]
[WhiteElo "1903"]
[BlackElo "2416"]
[PlyCount "58"]
[EventDate "2024.??.??"]
[TimeControl "1"]

1. e4 {[%emt 0:00:00]} c6 {[%emt 0:00:00]} 2. c4 {[%emt 0:00:00]} d5 {[%emt 0:
00:00]} 3. exd5 {[%emt 0:00:00]} cxd5 {[%emt 0:00:00]} 4. cxd5 {[%emt 0:00:00]}
Nf6 {[%emt 0:00:00]} 5. Nf3 {[%emt 0:00:00]} g6 {[%emt 0:00:00]} 6. Nc3 {
[%emt 0:00:00]} Bg7 {[%emt 0:00:00]} 7. Bc4 {[%emt 0:00:00]} O-O {[%emt 0:00:
00]} 8. O-O {[%emt 0:00:00]} Nbd7 {[%emt 0:00:00]} 9. d6 {[%emt 0:00:00]} e6 {
[%emt 0:00:00]} 10. d3 {[%emt 0:00:00]} Nb6 {[%emt 0:00:00]} 11. Bf4 {[%emt 0:
00:00]} Nh5 {[%emt 0:00:00]} 12. Qd2 {[%emt 0:00:00]} Nxf4 {[%emt 0:00:00]} 13.
Qxf4 {[%emt 0:00:00]} Bd7 {[%emt 0:00:00]} 14. Ne5 {[%emt 0:00:00]} Rc8 {
[%emt 0:00:00]} 15. Ne4 {[%emt 0:00:00]} Bc6 {[%emt 0:00:00]} 16. Nxc6 {
[%emt 0:00:00]} Rxc6 {[%emt 0:00:00]} 17. h4 {[%emt 0:00:00]} e5 {[%emt 0:00:
00]} 18. Qg3 {[%emt 0:00:00]} Nxc4 {[%emt 0:00:00]} 19. dxc4 {[%emt 0:00:00]}
f5 {[%emt 0:00:00]} 20. Ng5 {[%emt 0:00:00]} Rxd6 {[%emt 0:00:00]} 21. Qb3 {
[%emt 0:00:00]} Rb6 {[%emt 0:00:00]} 22. Qc2 {[%emt 0:00:00]} Qd4 {[%emt 0:00:
00]} 23. b3 {[%emt 0:00:00]} Qxh4 {[%emt 0:00:00]} 24. Qd2 {[%emt 0:00:00]} Kh8
{[%emt 0:00:00]} 25. Rad1 {[%emt 0:00:00]} e4 {[%emt 0:00:00]} 26. g3 {[%emt 0:
00:00]} Qg4 {[%emt 0:00:00]} 27. c5 {[%emt 0:00:00]} Rc6 {[%emt 0:00:00]} 28.
b4 {[%emt 0:00:00]} h6 {[%emt 0:00:00]} 29. b5 {[%emt 0:00:00]} Rcf6 {[%emt 0:
00:00]} 0-1

[Event "Open international de Salon de Provence"]
[Site "Salon de Provence, France"]
[Date "2024.07.07"]
[Round "2.5"]
[White "Hamon, Alexandre"]
[Black "Thiers, Jean-Jacques"]
[Result "1/2-1/2"]
[WhiteElo "1602"]
[BlackElo "1688"]
[PlyCount "72"]
[EventDate "2024.??.??"]
[TimeControl "1"]

1. d4 {[%emt 0:00:00]} d5 {[%emt 0:00:00]} 2. Bf4 {[%emt 0:00:00]} c5 {[%emt 0:
00:00]} 3. e3 {[%emt 0:00:00]} e6 {[%emt 0:00:00]} 4. Nf3 {[%emt 0:00:00]} Nf6
{[%emt 0:00:00]} 5. h3 {[%emt 0:00:00]} Bd6 {[%emt 0:00:00]} 6. Bxd6 {[%emt 0:
00:00]} Qxd6 {[%emt 0:00:00]} 7. Nbd2 {[%emt 0:00:00]} Nbd7 {[%emt 0:00:00]} 8.
c3 {[%emt 0:00:00]} O-O {[%emt 0:00:00]} 9. Bd3 {[%emt 0:00:00]} Re8 {[%emt 0:
00:00]} 10. O-O {[%emt 0:00:00]} b6 {[%emt 0:00:00]} 11. Re1 {[%emt 0:00:00]}
Bb7 {[%emt 0:00:00]} 12. e4 {[%emt 0:00:00]} dxe4 {[%emt 0:00:00]} 13. Nxe4 {
[%emt 0:00:00]} Nxe4 {[%emt 0:00:00]} 14. Bxe4 {[%emt 0:00:00]} Bxe4 {[%emt 0:
00:00]} 15. Rxe4 {[%emt 0:00:00]} Nf6 {[%emt 0:00:00]} 16. Re3 {[%emt 0:00:00]}
cxd4 {[%emt 0:00:00]} 17. cxd4 {[%emt 0:00:00]} Rad8 {[%emt 0:00:00]} 18. Rd3 {
[%emt 0:00:00]} Nd5 {[%emt 0:00:00]} 19. g3 {[%emt 0:00:00]} Nb4 {[%emt 0:00:
00]} 20. Rd2 {[%emt 0:00:00]} Re7 {[%emt 0:00:00]} 21. Qa4 {[%emt 0:00:00]}
Red7 {[%emt 0:00:00]} 22. a3 {[%emt 0:00:00]} Nc6 {[%emt 0:00:00]} 23. Rad1 {
[%emt 0:00:00]} Qd5 {[%emt 0:00:00]} 24. Rd3 {[%emt 0:00:00]} f6 {[%emt 0:00:
00]} 25. Kf1 {[%emt 0:00:00]} Na5 {[%emt 0:00:00]} 26. b3 {[%emt 0:00:00]} Rc7
{[%emt 0:00:00]} 27. b4 {[%emt 0:00:00]} Nc6 {[%emt 0:00:00]} 28. Qb3 {[%emt 0:
00:00]} Kf7 {[%emt 0:00:00]} 29. Qxd5 {[%emt 0:00:00]} Rxd5 {[%emt 0:00:00]}
30. Ke2 {[%emt 0:00:00]} Ne7 {[%emt 0:00:00]} 31. Ne1 {[%emt 0:00:00]} Nf5 {
[%emt 0:00:00]} 32. R1d2 {[%emt 0:00:00]} Rc4 {[%emt 0:00:00]} 33. Nf3 {
[%emt 0:00:00]} Nd6 {[%emt 0:00:00]} 34. Ne1 {[%emt 0:00:00]} Rc1 {[%emt 0:00:
00]} 35. Rc2 {[%emt 0:00:00]} Rxc2+ {[%emt 0:00:00]} 36. Nxc2 {[%emt 0:00:00]}
Nc4 {[%emt 0:00:00]} 1/2-1/2

[Event "Open international de Salon de Provence"]
[Site "Salon de Provence, France"]
[Date "2024.07.07"]
[Round "2.6"]
[White "Vrillet, Loan"]
[Black "Bicais, Noam"]
[Result "0-1"]
[WhiteElo "1676"]
[BlackElo "1603"]
[PlyCount "88"]
[EventDate "2024.??.??"]
[TimeControl "1"]

1. e4 {[%emt 0:00:00]} c5 {[%emt 0:00:00]} 2. Nc3 {[%emt 0:00:00]} Nc6 {
[%emt 0:00:00]} 3. Nf3 {[%emt 0:00:00]} d6 {[%emt 0:08:12]} 4. Bb5 {[%emt 0:00:
00]} g6 {[%emt 0:00:00]} 5. d4 {[%emt 0:00:00]} cxd4 {[%emt 0:00:00]} 6. Nxd4 {
[%emt 0:00:00]} Bd7 {[%emt 0:00:00]} 7. Be3 {[%emt 0:00:00]} Nf6 {[%emt 0:00:
00]} 8. f3 {[%emt 0:00:00]} Bg7 {[%emt 0:00:00]} 9. Qd2 {[%emt 0:00:00]} O-O {
[%emt 0:00:00]} 10. g4 {[%emt 0:00:00]} Rc8 {[%emt 0:00:00]} 11. h4 {[%emt 0:
00:00]} Nxd4 {[%emt 0:00:00]} 12. Bxd4 {[%emt 0:00:00]} Bxb5 {[%emt 0:00:00]}
13. Nxb5 {[%emt 0:00:00]} a6 {[%emt 0:00:00]} 14. Nc3 {[%emt 0:00:00]} h5 {
[%emt 0:00:00]} 15. gxh5 {[%emt 0:00:00]} Nxh5 {[%emt 0:00:00]} 16. Bxg7 {
[%emt 0:00:00]} Kxg7 {[%emt 0:00:00]} 17. O-O-O {[%emt 0:00:00]} b5 {[%emt 0:
00:00]} 18. Nd5 {[%emt 0:00:00]} Rh8 {[%emt 0:00:00]} 19. f4 {[%emt 0:00:00]}
Ng3 {[%emt 0:00:00]} 20. Rh3 {[%emt 0:03:11]} Nxe4 21. Qd4+ Nf6 22. Re1 e6 23.
Nc3 b4 24. Ne2 {[%emt 0:00:00]} Rc4 {[%emt 0:00:00]} 25. Qe3 {[%emt 0:00:00]}
Nd5 {[%emt 0:00:00]} 26. Qd3 {[%emt 0:00:00]} Nxf4 {[%emt 0:00:00]} 27. Qxc4 {
[%emt 0:00:00]} Nxh3 {[%emt 0:00:00]} 28. Qxb4 {[%emt 0:00:00]} Rxh4 {[%emt 0:
00:00]} 29. Qc3+ {[%emt 0:00:00]} Qf6 {[%emt 0:00:00]} 30. Qg3 {[%emt 0:00:00]}
Qg5+ {[%emt 0:00:00]} 31. Qxg5 {[%emt 0:00:00]} Nxg5 {[%emt 0:00:00]} 32. Rd1 {
[%emt 0:00:00]} Ne4 {[%emt 0:00:00]} 33. b3 {[%emt 0:00:00]} f5 {[%emt 0:00:00]
} 34. Rd4 {[%emt 0:00:00]} e5 {[%emt 0:00:00]} 35. Ra4 {[%emt 0:00:00]} Rh1+ {
[%emt 0:00:00]} 36. Kb2 {[%emt 0:00:00]} Nc5 {[%emt 0:00:00]} 37. Rc4 {[%emt 0:
00:00]} f4 {[%emt 0:00:00]} 38. b4 {[%emt 0:00:00]} Ne6 {[%emt 0:00:00]} 39.
Rc6 {[%emt 0:00:00]} f3 {[%emt 0:00:00]} 40. Ng3 {[%emt 0:00:00]} Rg1 {[%emt 0:
00:00]} 41. Ne4 {[%emt 0:00:00]} Ng5 {[%emt 0:00:00]} 42. Nxg5 {[%emt 0:00:00]}
Rxg5 {[%emt 0:00:00]} 43. Rxd6 {[%emt 0:00:00]} f2 {[%emt 0:00:00]} 44. Rd1 {
[%emt 0:00:00]} Rg1 {[%emt 0:00:00]} 0-1

[Event "Open international de Salon de Provence"]
[Site "Salon de Provence, France"]
[Date "2024.07.07"]
[Round "2.7"]
[White "Metzger, Raphael"]
[Black "Schreiber Pitot, Beryl"]
[Result "1-0"]
[WhiteElo "1601"]
[BlackElo "1669"]
[PlyCount "95"]
[EventDate "2024.??.??"]
[TimeControl "1"]

1. e4 {[%emt 0:00:00]} e6 {[%emt 0:00:00]} 2. d4 {[%emt 0:00:00]} d5 {[%emt 0:
00:00]} 3. Nd2 {[%emt 0:00:00]} c5 {[%emt 0:00:00]} 4. exd5 {[%emt 0:00:00]}
exd5 {[%emt 0:00:00]} 5. Bb5+ {[%emt 0:00:00]} Bd7 {[%emt 0:00:00]} 6. Qe2+ {
[%emt 0:00:00]} Qe7 {[%emt 0:00:00]} 7. Bxd7+ {[%emt 0:00:00]} Nxd7 {[%emt 0:
00:00]} 8. Qxe7+ {[%emt 0:00:00]} Bxe7 {[%emt 0:00:00]} 9. Ne2 {[%emt 0:00:00]}
c4 {[%emt 0:00:00]} 10. O-O {[%emt 0:00:00]} Ngf6 {[%emt 0:00:00]} 11. Nf3 {
[%emt 0:00:00]} O-O {[%emt 0:00:00]} 12. Bg5 {[%emt 0:00:00]} h6 {[%emt 0:00:
00]} 13. Bxf6 {[%emt 0:00:00]} Nxf6 {[%emt 0:00:00]} 14. Ng3 {[%emt 0:00:00]}
g6 {[%emt 0:00:00]} 15. Ne5 {[%emt 0:00:00]} Rfe8 {[%emt 0:00:00]} 16. Rfe1 {
[%emt 0:00:00]} Bd6 {[%emt 0:00:00]} 17. Rad1 {[%emt 0:00:00]} Rad8 {[%emt 0:
00:00]} 18. Re2 {[%emt 0:00:00]} Bxe5 {[%emt 0:00:00]} 19. dxe5 {[%emt 0:00:00]
} Ng4 {[%emt 0:00:00]} 20. f3 {[%emt 0:00:00]} Nxe5 {[%emt 0:00:00]} 21. Rde1 {
[%emt 0:00:00]} Nxf3+ {[%emt 0:00:00]} 22. gxf3 {[%emt 0:00:00]} Rxe2 {[%emt 0:
00:00]} 23. Nxe2 {[%emt 0:00:00]} Kg7 {[%emt 0:00:00]} 24. Kf2 {[%emt 0:00:00]}
Kf6 {[%emt 0:00:00]} 25. Ke3 {[%emt 0:00:00]} Ke5 {[%emt 0:00:00]} 26. f4+ {
[%emt 0:00:00]} Kd6 {[%emt 0:00:00]} 27. Nc3 {[%emt 0:00:00]} Re8+ {[%emt 0:00:
00]} 28. Kf2 {[%emt 0:00:00]} Rxe1 {[%emt 0:00:00]} 29. Kxe1 {[%emt 0:00:00]}
a6 {[%emt 0:00:00]} 30. Kd2 {[%emt 0:00:00]} b5 {[%emt 0:00:00]} 31. b4 {
[%emt 0:00:00]} g5 {[%emt 0:00:00]} 32. fxg5 {[%emt 0:00:00]} hxg5 {[%emt 0:00:
00]} 33. Ne2 {[%emt 0:00:00]} Ke5 {[%emt 0:00:00]} 34. Ke3 {[%emt 0:00:00]} f5
{[%emt 0:00:00]} 35. c3 {[%emt 0:00:00]} f4+ {[%emt 0:00:00]} 36. Kf3 {[%emt 0:
00:00]} g4+ {[%emt 0:00:00]} 37. Kxg4 {[%emt 0:00:00]} Ke4 {[%emt 0:00:00]} 38.
Nxf4 {[%emt 0:00:00]} d4 {[%emt 0:00:00]} 39. cxd4 {[%emt 0:00:00]} c3 {
[%emt 0:00:00]} 40. Ne2 {[%emt 0:00:00]} c2 {[%emt 0:00:00]} 41. d5 {[%emt 0:
00:00]} Ke3 {[%emt 0:00:00]} 42. Nc1 {[%emt 0:00:00]} Kd2 {[%emt 0:00:00]} 43.
Nb3+ {[%emt 0:00:00]} Kc3 {[%emt 0:00:00]} 44. d6 {[%emt 0:00:00]} Kb2 {
[%emt 0:00:00]} 45. d7 {[%emt 0:00:00]} Kxa2 {[%emt 0:00:00]} 46. Nc1+ {
[%emt 0:00:00]} Kb2 {[%emt 0:00:00]} 47. Nd3+ {[%emt 0:00:00]} Kc3 {[%emt 0:00:
00]} 48. d8=Q {[%emt 0:00:00]} 1-0

[Event "Open international de Salon de Provence"]
[Site "Salon de Provence, France"]
[Date "2024.07.07"]
[Round "2.8"]
[White "Maltsev, Nikita"]
[Black "Gomez, Guy"]
[Result "1/2-1/2"]
[WhiteElo "1552"]
[BlackElo "1660"]
[PlyCount "50"]
[EventDate "2024.??.??"]
[TimeControl "1"]

1. d4 {[%emt 0:00:00]} d5 {[%emt 0:00:00]} 2. Bf4 {[%emt 0:00:00]} Nf6 {
[%emt 0:00:00]} 3. Nf3 {[%emt 0:00:00]} e6 {[%emt 0:00:00]} 4. e3 {[%emt 0:00:
00]} c5 {[%emt 0:00:00]} 5. c3 {[%emt 0:00:00]} cxd4 {[%emt 0:00:00]} 6. cxd4 {
[%emt 0:00:00]} a6 {[%emt 0:00:00]} 7. Bd3 {[%emt 0:00:00]} Nc6 {[%emt 0:00:00]
} 8. O-O {[%emt 0:00:00]} Be7 {[%emt 0:00:00]} 9. Nc3 {[%emt 0:00:00]} O-O {
[%emt 0:00:00]} 10. h3 {[%emt 0:00:00]} Re8 {[%emt 0:00:00]} 11. Rc1 {[%emt 0:
00:00]} Bf8 {[%emt 0:00:00]} 12. Qb3 {[%emt 0:00:00]} b5 {[%emt 0:00:00]} 13.
Nxd5 {[%emt 0:00:00]} Nxd5 {[%emt 0:00:00]} 14. Rxc6 {[%emt 0:00:00]} Nxf4 {
[%emt 0:00:00]} 15. exf4 {[%emt 0:00:00]} Bb7 {[%emt 0:00:00]} 16. Be4 {
[%emt 0:02:40]} Rb8 {[%emt 0:00:00]} 17. Rfc1 {[%emt 0:00:00]} Bxc6 {[%emt 0:
00:00]} 18. Rxc6 {[%emt 0:00:00]} Qf6 {[%emt 0:00:00]} 19. f5 {[%emt 0:00:00]}
Rec8 {[%emt 0:00:00]} 20. fxe6 {[%emt 0:00:00]} Rxc6 {[%emt 0:00:00]} 21. Bxc6
{[%emt 0:00:00]} fxe6 {[%emt 0:00:00]} 22. Ne5 {[%emt 0:00:00]} Rd8 {[%emt 0:
04:40]} 23. Bd7 {[%emt 0:00:19]} Bd6 {[%emt 0:00:03]} 24. Bxe6+ {[%emt 0:00:07]
} Kh8 {[%emt 0:00:04]} 25. Nf7+ {[%emt 0:00:00]} Kg8 {[%emt 0:00:00]} 1/2-1/2

[Event "Open international de Salon de Provence"]
[Site "Salon de Provence, France"]
[Date "2024.07.07"]
[Round "3.1"]
[White "Enchev, Ivajlo"]
[Black "Gusain, Himal"]
[Result "1/2-1/2"]
[WhiteElo "2416"]
[BlackElo "2490"]
[PlyCount "92"]
[EventDate "2024.??.??"]
[TimeControl "1"]

1. d4 {[%emt 0:18:01]} d5 {[%emt 0:00:00]} 2. c4 {[%emt 0:00:00]} e6 {[%emt 0:
00:00]} 3. Nc3 {[%emt 0:00:00]} Nf6 {[%emt 0:00:00]} 4. Nf3 {[%emt 0:00:00]}
Be7 {[%emt 0:00:00]} 5. Bg5 {[%emt 0:00:00]} h6 {[%emt 0:00:00]} 6. Bh4 {
[%emt 0:00:00]} O-O {[%emt 0:00:00]} 7. e3 {[%emt 0:00:00]} b6 {[%emt 0:00:00]}
8. Rc1 {[%emt 0:00:00]} Bb7 {[%emt 0:00:00]} 9. Be2 {[%emt 0:00:00]} dxc4 {
[%emt 0:00:00]} 10. Bxc4 {[%emt 0:00:00]} Ne4 {[%emt 0:00:00]} 11. Bxe7 {
[%emt 0:00:00]} Qxe7 {[%emt 0:00:00]} 12. O-O {[%emt 0:00:00]} Rc8 {[%emt 0:00:
00]} 13. Nxe4 {[%emt 0:00:00]} Bxe4 {[%emt 0:00:00]} 14. Bd3 {[%emt 0:00:00]}
Bb7 {[%emt 0:00:00]} 15. Nd2 {[%emt 0:00:00]} Nd7 {[%emt 0:00:00]} 16. Be4 {
[%emt 0:00:00]} Bxe4 {[%emt 0:00:00]} 17. Nxe4 {[%emt 0:00:00]} c5 {[%emt 0:00:
00]} 18. Qa4 {[%emt 0:00:00]} cxd4 {[%emt 0:00:00]} 19. Qxd4 {[%emt 0:00:00]}
Nf6 {[%emt 0:00:00]} 20. Nxf6+ {[%emt 0:00:00]} Qxf6 {[%emt 0:00:00]} 21. Qxf6
{[%emt 0:00:00]} gxf6 {[%emt 0:00:00]} 22. g4 {[%emt 0:00:00]} Kg7 {[%emt 0:00:
00]} 23. Kg2 {[%emt 0:00:00]} Rxc1 {[%emt 0:00:00]} 24. Rxc1 {[%emt 0:00:00]}
Rd8 {[%emt 0:00:00]} 25. Rc2 {[%emt 0:00:00]} Kg6 {[%emt 0:00:00]} 26. b4 {
[%emt 0:00:00]} Rd3 {[%emt 0:00:00]} 27. Kg3 {[%emt 0:00:00]} Ra3 {[%emt 0:00:
00]} 28. Kh4 {[%emt 0:00:00]} Ra4 {[%emt 0:00:00]} 29. Rb2 {[%emt 0:00:00]} a5
{[%emt 0:00:00]} 30. bxa5 {[%emt 0:00:00]} bxa5 {[%emt 0:00:00]} 31. Kg3 {
[%emt 0:00:00]} f5 {[%emt 0:00:00]} 32. h3 {[%emt 0:00:00]} fxg4 {[%emt 0:00:
00]} 33. hxg4 {[%emt 0:00:00]} h5 {[%emt 0:00:00]} 34. gxh5+ {[%emt 0:00:00]}
Kxh5 {[%emt 0:00:00]} 35. f4 {[%emt 0:00:00]} Kg6 {[%emt 0:00:00]} 36. Kf3 {
[%emt 0:00:00]} f5 {[%emt 0:00:00]} 37. Rc2 {[%emt 0:00:00]} Kf6 {[%emt 0:00:
00]} 38. Rb2 {[%emt 0:00:00]} Ke7 {[%emt 0:00:00]} 39. Rd2 {[%emt 0:00:00]} Ra3
{[%emt 0:00:00]} 40. Ke2 {[%emt 0:00:00]} Rc3 {[%emt 0:00:00]} 41. Rd3 {
[%emt 0:00:00]} Rc2+ {[%emt 0:00:00]} 42. Rd2 {[%emt 0:00:00]} Rxd2+ {[%emt 0:
00:00]} 43. Kxd2 {[%emt 0:00:00]} Kd6 {[%emt 0:00:00]} 44. a4 {[%emt 0:00:00]}
Kc5 {[%emt 0:00:00]} 45. Kc3 {[%emt 0:00:00]} Kd5 {[%emt 0:00:00]} 46. Kd3 {
[%emt 0:00:00]} Kc5 {[%emt 0:00:00] Ke4} 1/2-1/2

[Event "Open international de Salon de Provence"]
[Site "Salon de Provence, France"]
[Date "2024.07.07"]
[Round "3.2"]
[White "Dimitrov, Radoslav"]
[Black "Petrosyan, Armen"]
[Result "0-1"]
[WhiteElo "2480"]
[BlackElo "2358"]
[PlyCount "136"]
[EventDate "2024.??.??"]
[TimeControl "1"]

1. c4 {[%emt 0:00:00]} e5 {[%emt 0:00:00]} 2. g3 {[%emt 0:00:00]} Nf6 {[%emt 0:
00:00]} 3. Nc3 {[%emt 0:00:00]} Bb4 {[%emt 0:00:00]} 4. Bg2 {[%emt 0:00:00]}
O-O {[%emt 0:00:00]} 5. e4 {[%emt 0:00:00]} Bxc3 {[%emt 0:00:00]} 6. bxc3 {
[%emt 0:00:00]} d6 {[%emt 0:00:00]} 7. d3 {[%emt 0:00:00]} Nc6 {[%emt 0:00:00]}
8. Ne2 {[%emt 0:00:00]} h6 {[%emt 0:00:00]} 9. f4 {[%emt 0:00:00]} exf4 {
[%emt 0:00:00]} 10. gxf4 {[%emt 0:00:00]} Ng4 {[%emt 0:00:00]} 11. h3 {[%emt 0:
00:00]} Qh4+ {[%emt 0:00:00]} 12. Kd2 {[%emt 0:00:00]} Nf6 {[%emt 0:00:00]} 13.
Qe1 {[%emt 0:00:00]} Qxe1+ {[%emt 0:00:00]} 14. Rxe1 {[%emt 0:00:00]} Bd7 {
[%emt 0:00:00]} 15. Nd4 {[%emt 0:00:00]} Rfe8 {[%emt 0:00:00]} 16. Rb1 {
[%emt 0:00:00]} Rab8 {[%emt 0:00:00]} 17. Nb5 {[%emt 0:00:00]} Rbc8 {[%emt 0:
00:00]} 18. Ba3 {[%emt 0:00:00]} Nd8 {[%emt 0:00:00]} 19. c5 {[%emt 0:00:00]}
Bxb5 {[%emt 0:00:00]} 20. Rxb5 {[%emt 0:00:00]} c6 {[%emt 0:00:00]} 21. Ra5 {
[%emt 0:00:00]} dxc5 {[%emt 0:00:00]} 22. Rxa7 {[%emt 0:00:00]} Ne6 {[%emt 0:
00:00]} 23. Rxb7 {[%emt 0:00:00]} Ra8 {[%emt 0:00:00]} 24. Bb2 {[%emt 0:00:00]}
Nxf4 {[%emt 0:00:00]} 25. Bf1 {[%emt 0:00:00]} Rxa2 {[%emt 0:00:00]} 26. Ke3 {
[%emt 0:00:00]} Ne6 {[%emt 0:00:00]} 27. c4 {[%emt 0:00:00]} Nh5 {[%emt 0:00:
00]} 28. Ra1 {[%emt 0:00:00]} Rxa1 {[%emt 0:00:00]} 29. Bxa1 {[%emt 0:00:00]}
Ng3 {[%emt 0:00:00]} 30. Bg2 {[%emt 0:00:00]} Nf5+ {[%emt 0:00:00]} 31. Kf2 {
[%emt 0:00:00]} Nfd4 {[%emt 0:00:00]} 32. e5 {[%emt 0:00:00]} Nf4 {[%emt 0:00:
00]} 33. Bxd4 {[%emt 0:00:00]} cxd4 {[%emt 0:00:00]} 34. Bxc6 {[%emt 0:00:00]}
Rxe5 {[%emt 0:00:00]} 35. Kf3 {[%emt 0:00:00]} Nxd3 {[%emt 0:00:00]} 36. Rb8+ {
[%emt 0:00:00]} Kh7 {[%emt 0:00:00]} 37. Be4+ {[%emt 0:00:00]} g6 {[%emt 0:00:
00]} 38. Rd8 {[%emt 0:00:00]} Nc5 {[%emt 0:00:00]} 39. Bd5 {[%emt 0:00:00]}
Re3+ {[%emt 0:00:00]} 40. Kg2 {[%emt 0:00:00]} f5 {[%emt 0:00:00]} 41. Rc8 {
[%emt 0:00:00]} Ne4 {[%emt 0:00:00]} 42. Rc7+ {[%emt 0:00:00]} Kh8 {[%emt 0:00:
00]} 43. c5 {[%emt 0:00:00]} d3 {[%emt 0:00:00]} 44. Bxe4 {[%emt 0:00:00]} Rxe4
{[%emt 0:00:00]} 45. Rd7 {[%emt 0:00:00]} Rc4 {[%emt 0:00:00]} 46. Rxd3 {
[%emt 0:00:00]} Rxc5 {[%emt 0:00:00]} 47. Rd7 {[%emt 0:00:00]} g5 {[%emt 0:00:
00]} 48. h4 {[%emt 0:00:00]} Kg8 {[%emt 0:00:00]} 49. h5 {[%emt 0:00:00]} Rc2+
{[%emt 0:00:00]} 50. Kg3 {[%emt 0:00:00]} Rc3+ {[%emt 0:00:00]} 51. Kg2 {
[%emt 0:00:00]} f4 {[%emt 0:00:00]} 52. Rd6 {[%emt 0:00:00]} Kg7 {[%emt 0:00:
00]} 53. Rg6+ {[%emt 0:00:00]} Kh7 {[%emt 0:00:00]} 54. Rf6 {[%emt 0:00:00]}
Rg3+ {[%emt 0:00:00]} 55. Kf2 {[%emt 0:00:00]} Rh3 {[%emt 0:00:00]} 56. Kg2 {
[%emt 0:00:00]} Rxh5 {[%emt 0:00:00]} 57. Kf3 {[%emt 0:00:00]} Kg7 {[%emt 0:00:
00]} 58. Ra6 {[%emt 0:00:00]} Rh3+ {[%emt 0:00:00]} 59. Kg4 {[%emt 0:00:00]}
Rh4+ {[%emt 0:00:00]} 60. Kf3 {[%emt 0:00:00]} Rh1 {[%emt 0:00:00]} 61. Kg4 {
[%emt 0:00:00]} Rg1+ {[%emt 0:00:00]} 62. Kf5 {[%emt 0:00:00]} f3 {[%emt 0:00:
00]} 63. Ra7+ {[%emt 0:00:00]} Kf8 {[%emt 0:00:00]} 64. Kg6 {[%emt 0:00:00]} g4
{[%emt 0:00:00]} 65. Rf7+ {[%emt 0:00:00]} Ke8 {[%emt 0:00:00]} 66. Rf4 {
[%emt 0:00:00]} Ke7 {[%emt 0:00:00]} 67. Kxh6 {[%emt 0:00:00]} Ke6 {[%emt 0:00:
00]} 68. Kg5 {[%emt 0:00:00]} Ke5 {[%emt 0:00:00]} 0-1